bitfinex-derivatives/quotes_ETHF0:USTF0_20250902
["timestamp","ask_amount","ask_price","bid_price","bid_amount"]
[1756795900351,0.42947396,4405.6,4405.5,0.7111]
[1756795900846,0.22177396,4405.6,4405.5,0.8332]
[1756795901150,0.42947396,4405.6,4405.5,0.7111]
[1756795901347,0.42947396,4405.6,4405.5,0.9451]
[1756795901649,0.91237396,4405.6,4405.5,0.9451]
[1756795901843,0.91237396,4405.6,4405.5,0.3107]
[1756795902049,0.91237396,4405.6,4405.5,0.5089]
[1756795902252,0.91237396,4405.6,4405.5,0.7163]
[1756795903854,0.91237396,4405.6,4405.5,0.5089]
[1756795904054,0.6867,4405.5,4405.4,0.4855]
[1756795904251,0.90847396,4405.5,4405.4,0.4855]
[1756795905448,0.2843,4405.4,4405.3,0.5203]
[1756795905755,1.88809196,4405.4,4405.3,0.7185]
[1756795905949,1.88809196,4405.4,4405.3,0.4855]
[1756795906450,1.60379196,4405.4,4405.3,0.6929]
[1756795906654,1.20139196,4405.4,4405.3,0.6929]
[1756795906855,1.40519196,4405.4,4405.3,0.6929]
[1756795907747,1.88809196,4405.4,4405.3,0.6929]
[1756795908556,0.90847396,4405.4,4405.3,0.6929]
[1756795908757,0.22177396,4405.4,4405.3,0.6929]
[1756795909657,0.42557396,4405.4,4405.3,0.6929]
[1756795909955,0.22177396,4405.4,4405.3,0.6929]
[1756795910150,0.1134,4405.6,4405.3,0.6929]
[1756795910351,0.22192379,4405.5,4405.4,0.2873]
[1756795910554,0.22192379,4405.5,4405.4,0.6929]
[1756795910758,0.2219581,4405.5,4405.4,0.6929]
[1756795913060,0.2219581,4405.5,4405.4,3.9007]
[1756795918561,0.4257581,4405.5,4405.4,3.9007]
[1756795918859,0.4257581,4405.5,4405.4,4.1337]
[1756795919058,0.2219581,4405.5,4405.4,4.1337]
[1756795919254,0.4257581,4405.5,4405.4,4.1337]
[1756795920359,0.6243581,4405.5,4405.4,4.1337]
[1756795920561,0.4257581,4405.5,4405.4,4.1337]
[1756795920865,0.1134,4405.6,4405.4,3.8464]
[1756795921058,0.21738068,4405.5,4405.4,3.8464]
[1756795921259,0.90408068,4405.5,4405.4,3.6134]
[1756795921566,0.90411868,4405.5,4405.4,4.1337]
[1756795921763,0.61981868,4405.5,4405.4,4.1337]
[1756795922062,0.21741868,4405.5,4405.4,4.1337]
[1756795922267,0.21741868,4405.5,4405.4,4.36068999]
[1756795922764,0.21741868,4405.5,4405.4,4.1337]
[1756795924761,0.1134,4405.7,4405.4,4.1337]
[1756795925066,0.1134,4405.7,4405.6,0.6929]
[1756795925364,0.1134,4405.7,4405.6,0.9259]
[1756795925365,0.3172,4405.7,4405.6,0.9259]
[1756795926761,0.1134,4405.7,4405.6,0.9259]
[1756795929365,0.3307601,4405.7,4405.6,0.9259]
[1756795930055,0.33076247,4405.7,4405.6,0.9259]
[1756795931667,1.05036247,4405.7,4405.6,0.7185]
[1756795931966,1.05036247,4405.7,4405.6,0.9131]
[1756795932468,0.7196,4405.6,4405.5,0.233]
[1756795932765,1.91658047,4405.6,4405.5,0.5292]
[1756795932960,1.91658047,4405.6,4405.4,3.2078]
[1756795933168,0.63296247,4405.5,4405.1,0.5292]
[1756795933366,1.699218,4405.2,4405.1,0.5292]
[1756795933566,1.91658047,4405.2,4405.1,0.2962]
[1756795933765,1.91658047,4405.2,4405.1,0.5007]
[1756795935269,1.699218,4405.2,4405.1,0.5007]
[1756795935469,1.91651208,4405.2,4405.1,0.5007]
[1756795936865,1.91651208,4405.2,4404.8,3.2078]
[1756795937071,1.699218,4404.9,4404.8,3.9031]
[1756795937272,1.61251208,4404.9,4404.8,4.1361]
[1756795937468,1.61251208,4404.9,4404.8,44.9361]
[1756795941365,1.40551208,4404.9,4404.8,44.9361]
[1756795941660,1.19691208,4404.9,4404.8,44.9361]
[1756795945474,1.00366764,4404.9,4404.8,44.9361]
[1756795946079,1.0034206,4404.9,4404.8,44.9361]
[1756795946773,1.7230206,4404.9,4404.8,3.9031]
[1756795946979,1.7230206,4404.9,4404.8,4.1361]
[1756795947781,1.7230206,4404.9,4404.8,3.9031]
[1756795948081,1.7230206,4404.9,4404.8,0.9283]
[1756795948577,1.7230206,4404.9,4404.8,0.6953]
[1756795948880,1.7230206,4404.9,4404.8,0.9283]
[1756795949180,1.7230206,4404.9,4404.8,0.6953]
[1756795949578,1.7230206,4404.9,4404.8,0.9283]
[1756795949579,1.72303199,4404.9,4404.8,0.9283]
[1756795950681,1.72303199,4404.9,4404.8,0.5292]
[1756795950883,1.72303199,4404.9,4404.8,0.2962]
[1756795951881,1.72303199,4404.9,4404.8,0.5007]
[1756795955576,1.72303199,4404.9,4404.8,0.6953]
[1756795956580,1.72532423,4404.9,4404.8,0.6953]
[1756795956986,0.63495067,4404.9,4404.8,0.6953]
[1756795957185,1.42132423,4404.9,4404.8,0.6953]
[1756795957385,1.42132266,4404.9,4404.8,0.6953]
[1756795958183,1.72532266,4404.9,4404.8,0.6953]
[1756795958886,0.6349491,4404.9,4404.8,0.6953]
[1756795959087,0.2193491,4404.9,4404.8,0.6953]
[1756795961385,1.00572266,4404.9,4404.8,0.6953]
[1756795962690,1.21172266,4404.9,4404.8,0.6953]
[1756795963189,1.00572266,4404.9,4404.8,0.9283]
[1756795964984,1.21172266,4404.9,4404.8,0.9283]
[1756795965190,1.69042266,4404.9,4404.8,0.9283]
[1756795965490,1.69042266,4404.9,4404.8,0.7337]
[1756795965794,1.69042266,4404.9,4404.1,0.10444694]
[1756795965795,0.206,4404.3,4404.2,2.42156652]
[1756795965991,1.21172266,4404.3,4404.2,0.3983]
[1756795966193,1.00572266,4404.3,4404.2,0.3983]
[1756795966391,1.00572266,4404.3,4404.2,41.5048]
[1756795967087,0.78637356,4404.3,4404.2,41.5048]
[1756795967296,1.0059864,4404.3,4404.2,41.5048]
[1756795968294,1.0059864,4404.3,4404.2,41.7378]
[1756795977802,1.00591988,4404.3,4404.2,41.7378]
[1756795978297,0.21954632,4404.3,4404.2,41.7378]
[1756795978998,0.21954632,4404.3,4404.2,45.7378]
[1756795979198,0.21954632,4404.3,4404.2,43.76106652]
[1756795979395,0.21954632,4404.3,4404.2,43.98811652]
[1756795979701,0.21954632,4404.3,4404.2,43.76106652]
[1756795983995,0.21954632,4404.3,4404.2,41.7378]
[1756795984703,0.21954632,4404.3,4404.2,42.52417356]
[1756795986605,0.21954632,4404.3,4404.2,44.54744008]
[1756795987103,0.1135,4404.5,4404.2,44.54744008]
[1756795987307,0.22082492,4404.4,4404.3,0.7048]
[1756795988009,0.22082265,4404.4,4404.3,41.5048]
[1756795990008,0.22082024,4404.4,4404.3,41.1983]
[1756795990206,0.22082024,4404.4,4404.3,41.4313]
[1756795990511,0.22082024,4404.4,4404.3,42.21767356]
[1756795990703,0.22082024,4404.4,4404.3,42.52417356]
[1756795991104,0.22082024,4404.4,4404.3,41.7378]
[1756795998019,0.22089175,4404.4,4404.3,41.7243]
[1756796002310,0.22089175,4404.4,4404.3,43.74756652]
[1756796005010,0.22097505,4404.4,4404.3,43.45456652]
[1756796005211,0.22097505,4404.4,4404.3,43.74756652]
[1756796006312,0.22097505,4404.4,4404.3,41.7243]
[1756796007419,0.22097505,4404.4,4404.3,42.70405645]
[1756796007916,3.409,4406.3,4406.2,0.6773]
[1756796008110,0.2891,4406.7,4406.2,3.8251]
[1756796008316,0.6931,4406.7,4406.6,0.6773]
[1756796008511,0.6931,4406.7,4406.6,0.9103]
[1756796008814,0.404,4406.7,4406.6,0.9103]
[1756796009514,3.4969,4407.0,4406.6,0.9103]
[1756796009515,3.2078,4407.0,4406.7,0.293]
[1756796009718,3.409,4407.0,4406.9,0.6773]
[1756796010014,3.9009,4407.0,4406.9,0.6773]
[1756796012507,3.9009,4407.0,4406.9,0.233]
[1756796013019,7.9009,4407.0,4406.8,0.233]
[1756796013218,1.67285645,4406.9,4406.8,0.233]
[1756796016918,1.67285645,4406.9,4406.5,0.293]
[1756796017118,0.404,4406.3,4406.2,3.3999]
[1756796017319,0.6931,4406.3,4406.2,3.6329]
[1756796017522,0.6931,4406.3,4406.2,3.8251]
[1756796017720,0.6931,4406.3,4406.2,4.1181]
[1756796017919,0.404,4406.3,4406.2,4.1181]
[1756796018124,0.2012,4406.7,4406.6,0.3843]
[1756796018314,0.2012,4406.7,4406.6,0.9103]
[1756796019725,4.18755645,4407.0,4406.7,0.293]
[1756796019925,4.38875645,4407.0,4406.9,0.3843]
[1756796020126,4.38875645,4407.0,4406.9,0.6773]
[1756796020319,4.38875645,4407.0,4406.9,0.9103]
[1756796020627,3.409,4407.0,4406.9,0.9103]
[1756796021223,3.6118,4407.0,4406.9,0.9103]
[1756796021423,3.9107,4407.0,4406.9,0.9103]
[1756796023424,3.6118,4407.0,4406.9,0.9103]
[1756796023723,0.3153,4407.5,4407.4,0.3957]
[1756796023924,0.3153,4407.5,4407.4,0.9202]
[1756796024115,0.1133,4407.5,4407.4,0.9202]
[1756796024316,0.7045,4407.5,4407.4,41.033]
[1756796026028,0.7045,4407.5,4407.4,41.0915]
[1756796026527,0.7045,4407.5,4407.4,41.3245]
[1756796027831,0.4056,4407.5,4407.4,41.3245]
[1756796028031,0.4056,4407.5,4407.4,0.9202]
[1756796028530,0.202,4407.5,4407.4,0.9202]
[1756796029229,0.4056,4407.5,4407.4,0.9202]
[1756796029430,0.4056,4407.5,4407.4,0.6872]
[1756796029431,0.7045,4407.5,4407.4,0.6872]
[1756796029729,0.7045,4407.5,4407.4,0.5245]
[1756796030224,0.7045,4407.5,4407.1,40.8]
[1756796030431,0.7045,4406.8,4406.7,3.2078]
[1756796030727,1.68425645,4406.8,4406.7,3.2078]
[1756796031525,1.68425645,4406.8,4406.5,0.233]
[1756796031726,1.68425645,4406.8,4406.4,0.233]
[1756796032429,1.38535645,4406.5,4406.3,0.2915]
[1756796032629,0.7045,4406.4,4406.3,0.5245]
[1756796033426,0.2989,4406.3,4406.0,0.2915]
[1756796033733,1.68425645,4406.1,4406.0,0.5245]
[1756796035533,1.68425645,4406.1,4406.0,0.7267]
[1756796036631,1.68425645,4406.1,4406.0,0.4937]
[1756796038927,1.38535645,4406.1,4405.6,0.2915]
[1756796039135,0.2989,4406.0,4405.7,0.233]
[1756796039336,1.68425645,4405.8,4405.7,0.4352]
[1756796039533,1.68425645,4405.8,4405.7,0.6287]
[1756796039733,1.68425645,4405.8,4405.7,0.6872]
[1756796039934,1.68425645,4405.8,4405.7,0.7267]
[1756796040337,1.87462224,4405.8,4405.7,0.7267]
[1756796040537,1.87462224,4405.8,4405.7,0.9202]
[1756796040738,1.57572224,4405.8,4405.7,0.9202]
[1756796040935,1.37212224,4405.8,4405.7,0.9202]
[1756796041746,1.17012224,4405.8,4405.7,0.9202]
[1756796042034,0.19036579,4405.8,4405.7,0.9202]
[1756796042334,0.39236579,4405.8,4405.7,0.9202]
[1756796042940,1.37212224,4405.8,4405.7,0.9202]
[1756796043137,1.57572224,4405.8,4405.7,0.6872]
[1756796043335,1.87462224,4405.8,4405.7,0.9202]
[1756796044042,1.87462224,4405.8,4405.7,0.6872]
[1756796044334,1.87462224,4405.8,4405.7,0.9202]
[1756796045936,1.37212224,4405.8,4405.7,0.9202]
[1756796046141,0.19036579,4405.8,4405.7,0.9202]
[1756796046541,1.09315645,4406.1,4405.7,0.6287]
[1756796046745,0.19022399,4406.0,4405.9,0.3957]
[1756796047044,0.39222399,4406.0,4405.9,0.6872]
[1756796047239,0.39222399,4406.0,4405.9,41.4872]
[1756796047847,3.2078,4407.6,4406.1,0.2915]
[1756796048042,4.59315645,4407.6,4407.5,0.6872]
[1756796048242,5.08217453,4407.6,4407.5,0.6872]
[1756796049848,5.08217453,4407.6,4407.5,0.2022]
[1756796050043,4.89205645,4407.6,4407.3,0.5245]
[1756796050251,0.89461055,4407.5,4407.4,0.6872]
[1756796050951,0.89460221,4407.5,4407.4,0.6872]
[1756796051646,0.89460221,4407.5,4407.3,40.8]
[1756796051843,0.47750221,4407.4,4407.3,41.032]
[1756796052239,0.47750221,4407.4,4407.3,41.319]
[1756796052845,0.47750123,4407.4,4407.3,41.319]
[1756796053857,0.47750123,4407.4,4407.3,41.087]
[1756796054048,0.87740123,4407.4,4407.3,0.6809]
[1756796060974,0.87753195,4407.4,4407.3,0.6809]
[1756796061777,0.3999,4407.4,4407.3,0.6809]
[1756796061969,0.19021675,4407.4,4407.3,0.6809]
[1756796065372,0.19021675,4407.4,4407.3,0.7103]
[1756796065373,0.87751675,4407.4,4407.3,0.7103]
[1756796066570,0.59011675,4407.4,4407.3,0.9129]
[1756796066875,0.39241675,4407.4,4407.3,0.9129]
[1756796067174,0.87751675,4407.4,4407.3,0.9129]
[1756796067568,1.66313296,4407.4,4407.3,0.9129]
[1756796068374,1.66313296,4407.4,4407.3,0.6809]
[1756796069374,0.39241675,4407.4,4407.3,0.6809]
[1756796069578,0.97583296,4407.4,4407.3,0.6809]
[1756796069975,0.97583296,4407.4,4407.3,41.4809]
[1756796071773,0.97550921,4407.4,4407.3,41.4809]
[1756796074373,0.97550921,4407.4,4407.3,41.7129]
[1756796077672,0.189893,4407.4,4407.3,41.7129]
[1756796077880,0.189893,4407.4,4407.3,46.49851621]
[1756796078078,0.189893,4407.4,4407.3,46.7254062]
[1756796078882,0.189893,4407.4,4407.3,46.49851621]
[1756796079382,0.1133,4407.9,4407.8,0.3939]
[1756796079678,0.19023319,4407.9,4407.8,0.9129]
[1756796080080,0.9758494,4407.9,4407.8,0.9129]
[1756796080275,1.6631494,4407.9,4407.8,0.7103]
[1756796082282,1.47291621,4407.9,4407.8,0.7103]
[1756796082580,1.66308215,4407.9,4407.8,0.7103]
[1756796085970,1.66301502,4407.9,4407.8,0.7103]
[1756796088179,1.66301502,4407.9,4407.8,0.4783]
[1756796088581,0.3003,4407.7,4407.2,40.8]
[1756796088885,0.87819881,4407.6,4407.5,0.7383]
[1756796089487,0.87820533,4407.6,4407.5,0.7383]
[1756796089985,1.66382154,4407.6,4407.5,0.7383]
[1756796091286,0.87820533,4407.6,4407.5,0.9423]
[1756796091480,1.66382154,4407.6,4407.5,0.9423]
[1756796092289,0.38660533,4407.6,4407.5,0.9423]
[1756796092988,0.40811022,4407.6,4407.5,0.9423]
[1756796093892,0.40811745,4407.6,4407.5,0.9423]
[1756796095493,0.21161745,4407.6,4407.5,0.9423]
[1756796096287,0.40811745,4407.6,4407.5,0.7103]
[1756796096492,0.89971745,4407.6,4407.5,0.9423]
[1756796097694,0.59941745,4407.6,4407.5,0.9423]
[1756796099293,0.21161745,4407.6,4407.5,0.9423]
[1756796099492,0.40811745,4407.6,4407.5,0.9423]
[1756796099797,0.89971745,4407.6,4407.5,0.9423]
[1756796100596,0.21161745,4407.6,4407.5,1.0557]
[1756796100991,1.63729187,4410.0,4409.0,0.0687]
[1756796101199,0.1163,4411.5,4410.3,0.3003]
[1756796101491,0.3878,4411.5,4411.4,0.2054]
[1756796101698,0.3878,4411.5,4411.4,1.17419261]
[1756796102093,0.5041,4411.5,4411.4,0.53279261]
[1756796102397,4.73078,4411.5,4411.4,0.21256937]
[1756796102585,4.73078,4411.5,4411.4,0.21258893]
[1756796102896,4.5041,4411.5,4411.4,0.21258893]
[1756796103197,4.8044,4411.5,4411.4,0.21258893]
[1756796103494,4.8044,4411.5,4411.4,0.21258171]
[1756796104693,4.8044,4411.5,4410.8,0.232]
[1756796104891,0.8044,4411.0,4410.9,0.21257939]
[1756796105092,0.8044,4411.0,4410.9,0.44457939]
[1756796105797,0.6881,4411.0,4410.9,0.85397939]
[1756796106097,0.6881,4411.0,4410.9,1.15387939]
[1756796106394,0.4968,4411.0,4410.9,1.15387939]
[1756796107493,0.6881,4411.0,4410.9,0.85397939]
[1756796107891,0.6881,4411.0,4410.9,1.15387939]
[1756796109094,1.17341621,4411.4,4411.3,0.4094]
[1756796109398,1.47371621,4411.4,4411.3,3.8492]
[1756796110796,0.78561621,4411.8,4411.3,3.8492]
[1756796110994,1.17341621,4411.8,4411.7,0.4094]
[1756796111194,1.17341621,4411.8,4411.7,0.6414]
[1756796111395,1.17341621,4411.8,4411.7,41.4414]
[1756796111595,0.4802,4412.4,4412.3,0.3799]
[1756796111792,0.6881,4412.4,4412.3,0.3799]
[1756796112193,0.6881,4412.4,4412.3,0.6753]
[1756796112896,0.1139,4415.0,4413.9,0.2954]
[1756796113106,0.6881,4414.7,4414.6,3.2078]
[1756796113292,0.6881,4414.7,4414.6,3.2888]
[1756796113492,0.6881,4414.7,4414.6,3.2078]
[1756796114095,0.6881,4414.7,4414.6,3.6321]
[1756796114289,0.1963,4414.8,4414.6,3.2078]
[1756796114597,0.6881,4414.7,4414.6,3.2078]
[1756796114797,0.6881,4414.7,4414.6,44.2418]
[1756796114997,0.4802,4414.7,4414.6,44.5372]
[1756796115199,0.2839,4414.7,4414.6,44.5372]
[1756796115997,0.2839,4414.7,4414.6,44.2418]
[1756796116594,0.2839,4415.4,4414.7,0.2954]
[1756796116792,0.6881,4415.3,4415.2,3.2078]
[1756796117191,0.6881,4415.3,4415.2,3.4418]
[1756796118100,0.6881,4415.3,4415.2,3.6331]
[1756796119201,0.6881,4415.3,4415.2,3.3991]
[1756796119406,0.6881,4415.3,4415.2,3.4418]
[1756796120093,0.6881,4415.3,4415.2,3.6331]
[1756796120298,0.6881,4415.3,4415.2,3.8217]
[1756796121199,0.6881,4415.3,4415.2,3.4418]
[1756796122403,0.1139,4415.0,4414.7,3.2078]
[1756796122592,3.47008654,4414.8,4414.7,3.2078]
[1756796122797,3.47008654,4414.8,4414.7,3.4408]
[1756796124206,3.47008654,4414.8,4414.7,3.2078]
[1756796125695,0.6881,4414.7,4414.1,3.2078]
[1756796125901,0.6881,4414.2,4414.1,3.3991]
[1756796126198,0.6881,4414.2,4414.1,3.8207]
[1756796128995,0.6881,4414.2,4414.1,4.1161]
[1756796129403,0.4802,4414.2,4414.1,4.1161]
[1756796129606,0.4802,4414.2,4414.1,3.8831]
[1756796129806,0.4802,4414.2,4414.1,4.1161]
[1756796130209,0.6881,4414.2,4414.1,3.8207]
[1756796130608,0.6881,4414.2,4414.1,4.1161]
[1756796130909,0.2839,4414.2,4414.1,4.1161]
[1756796131509,0.2839,4414.2,4414.1,3.8831]
[1756796131698,0.2839,4414.2,4414.1,4.1161]
[1756796131903,0.2839,4414.9,4414.1,4.1161]
[1756796132311,0.4802,4414.2,4414.1,3.8831]
[1756796132498,0.4802,4414.2,4414.1,4.1161]
[1756796132904,0.2839,4414.2,4414.1,4.1161]
[1756796133307,0.2839,4414.2,4414.1,4.32852549]
[1756796133703,0.4802,4414.2,4414.1,4.1161]
[1756796134307,0.2839,4414.9,4414.1,4.03312877]
[1756796134611,0.6881,4414.9,4414.8,0.1913]
[1756796134812,0.6881,4414.9,4414.6,0.233]
[1756796135411,0.97580582,4414.7,4414.6,0.233]
[1756796135606,1.66390582,4414.7,4414.6,0.233]
[1756796136614,0.6881,4414.6,4414.5,0.233]
[1756796136807,1.66390582,4414.6,4414.5,0.233]
[1756796137009,1.66390582,4414.6,4414.5,0.3799]
[1756796137411,0.3978,4414.5,4414.1,3.2078]
[1756796137615,1.66390582,4414.2,4414.1,3.2078]
[1756796138111,2.20407844,4414.2,4414.1,3.2078]
[1756796139415,1.22827262,4414.2,4414.1,3.2078]
[1756796141908,0.1249,4414.0,4413.1,3.2078]
[1756796142111,0.6955,4413.2,4413.1,3.2078]
[1756796142316,1.23567262,4413.2,4413.1,3.2078]
[1756796142517,1.23567262,4413.2,4413.1,3.3986]
[1756796142909,1.23567262,4413.2,4413.1,3.5972]
[1756796145622,1.23567262,4413.2,4413.1,3.3986]
[1756796145916,1.23567262,4413.2,4413.1,3.2078]
[1756796146120,1.23567262,4413.2,4413.1,3.3986]
[1756796146820,1.46767262,4413.2,4413.1,3.5972]
[1756796147819,1.46767262,4413.2,4413.1,3.8952]
[1756796150613,1.46767262,4413.2,4413.1,3.5972]
[1756796151014,1.46767262,4413.2,4413.1,3.8952]
[1756796151216,0.9275,4413.2,4413.1,3.8952]
[1756796151421,0.7304,4413.2,4413.1,3.8952]
[1756796153620,5.3139,4414.1,4413.2,0.6874]
[1756796153825,0.54151629,4414.0,4413.9,0.298]
[1756796154025,5.3139,4414.1,4413.9,0.3894]
[1756796154226,5.8123,4414.1,4414.0,0.6874]
[1756796155431,6.0094,4414.1,4414.0,0.3894]
[1756796156322,5.3139,4414.7,4414.0,0.3894]
[1756796156624,0.6955,4414.5,4414.4,0.1908]
[1756796156925,1.23709233,4414.5,4414.4,0.1908]
[1756796157126,0.6955,4414.5,4414.4,0.1908]
[1756796157626,0.5285,4414.5,4413.8,40.8]
[1756796157822,0.4984,4413.9,4413.8,41.33]
[1756796158232,0.4984,4413.9,4413.8,40.8]
[1756796158430,0.6955,4413.9,4413.8,0.4228]
[1756796158622,0.2919,4413.8,4413.7,3.2078]
[1756796158827,3.89800557,4413.8,4413.7,3.2078]
[1756796159230,0.6955,4413.8,4413.7,3.5972]
[1756796160735,0.6955,4413.8,4413.7,3.3986]
[1756796161536,1.67177583,4413.8,4413.7,3.3986]
[1756796162324,1.67177583,4413.8,4413.7,3.2078]
[1756796162832,1.67177583,4413.8,4413.7,3.3986]
[1756796163034,6.98567583,4413.8,4413.7,3.3986]
[1756796164837,6.98567583,4413.8,4413.7,3.8952]
[1756796166334,6.98567583,4413.8,4413.7,3.5972]
[1756796167530,6.98567583,4413.8,4413.7,3.2078]
[1756796170742,6.98567583,4413.8,4413.7,3.3986]
[1756796171040,6.58207583,4413.8,4413.7,3.8952]
[1756796171338,5.3139,4413.8,4413.7,3.8952]
[1756796171638,6.80347583,4413.8,4413.7,3.8952]
[1756796172038,6.99847583,4413.8,4413.7,3.8952]
[1756796172237,7.20427583,4413.8,4413.7,3.5972]
[1756796173035,5.5459,4413.8,4413.7,3.8796]
[1756796173237,5.8272,4413.8,4413.7,3.8796]
[1756796173435,7.20427583,4413.8,4413.7,3.5972]
[1756796175642,7.20427583,4413.8,4413.7,3.8796]
[1756796176644,6.99847583,4413.8,4413.7,3.8796]
[1756796182148,6.99847583,4413.8,4413.7,3.5972]
[1756796182341,7.20427583,4413.8,4413.7,3.5972]
[1756796182846,7.20427583,4413.8,4413.7,3.3986]
[1756796183045,7.20427583,4413.8,4413.7,3.2078]
[1756796183249,7.20427583,4413.8,4413.7,3.3975]
[1756796183842,7.20427583,4413.8,4413.7,3.5986]
[1756796184041,7.20427583,4413.8,4413.7,3.881]
[1756796184645,6.228,4413.8,4413.7,3.881]
[1756796184852,8.974,4414.9,4413.7,4.113]
[1756796184853,5.3139,4414.4,4413.7,4.113]
[1756796185146,5.5952,4414.4,4414.3,3.881]
[1756796185347,5.8272,4414.4,4414.3,3.881]
[1756796185545,6.0222,4414.4,4414.3,3.881]
[1756796185745,0.7083,4414.4,4414.3,3.881]
[1756796186050,1.68457583,4414.4,4414.3,3.881]
[1756796186647,0.2813,4414.4,4414.3,4.113]
[1756796186948,0.4763,4414.6,4414.5,0.6732]
[1756796187343,0.6821,4414.6,4414.5,0.3908]
[1756796187548,1.20827583,4414.7,4414.3,3.2078]
[1756796187549,0.4008,4414.4,4414.3,3.2078]
[1756796187749,1.65837583,4414.4,4414.3,3.2078]
[1756796187940,1.65837583,4414.4,4414.3,3.3975]
[1756796188146,1.65837583,4414.4,4414.3,3.5986]
[1756796188946,1.65837583,4414.4,4414.3,3.881]
[1756796189146,1.65837583,4414.4,4414.3,3.5986]
[1756796189350,1.65837583,4414.4,4414.3,3.8306]
[1756796189553,1.4651757,4414.4,4414.3,3.8306]
[1756796189752,1.4651757,4414.4,4414.3,3.5986]
[1756796190052,1.4651757,4414.4,4414.3,3.8306]
[1756796190744,0.7083,4414.9,4414.8,0.3908]
[1756796190948,1.2593757,4414.9,4414.8,3.881]
[1756796192455,1.4651757,4414.9,4414.8,3.881]
[1756796192653,1.4651757,4414.9,4414.8,3.5986]
[1756796194256,2.2482514,4414.9,4414.6,0.232]
[1756796194557,0.4008,4414.6,4414.5,0.4217]
[1756796194757,1.4651757,4414.6,4414.5,0.4217]
[1756796194951,1.4651757,4414.6,4414.5,0.1897]
[1756796196656,0.2813,4414.5,4414.3,3.2078]
[1756796196863,0.6821,4414.4,4414.3,3.2078]
[1756796197062,0.6821,4414.4,4414.3,3.4398]
[1756796197361,0.6821,4414.4,4414.3,3.6295]
[1756796197759,0.6821,4414.4,4414.3,3.2078]
[1756796200562,0.6821,4414.4,4414.3,3.3975]
[1756796200862,0.6821,4414.4,4414.3,3.881]
[1756796201062,1.0643757,4414.4,4414.3,3.881]
[1756796201258,0.7830757,4414.4,4414.3,3.881]
[1756796202160,0.7830757,4414.4,4414.3,3.5986]
[1756796202359,1.0898757,4414.4,4414.3,3.5986]
[1756796202752,0.7830757,4414.4,4414.3,4.1206]
[1756796203663,1.0898757,4414.4,4414.3,4.1206]
[1756796204063,1.4934757,4414.4,4414.3,4.1206]
[1756796204559,1.2944757,4414.4,4414.3,4.1206]
[1756796205365,1.4934757,4414.4,4414.3,3.8306]
[1756796205767,1.2944757,4414.4,4414.3,4.1206]
[1756796205958,1.0898757,4414.4,4414.3,4.1206]
[1756796206361,0.7830757,4414.4,4414.3,4.1206]
[1756796206854,1.0898757,4414.4,4414.3,4.1206]
[1756796211168,0.7830757,4414.4,4414.3,4.1206]
[1756796212071,1.2944757,4414.4,4414.3,3.8886]
[1756796212270,1.4934757,4414.4,4414.3,3.8306]
[1756796212471,1.4934757,4414.4,4414.3,3.8886]
[1756796212768,1.4934757,4414.4,4414.3,4.1206]
[1756796212975,1.4934757,4414.4,4414.3,3.8306]
[1756796215062,1.4934757,4414.4,4414.3,4.1206]
[1756796215773,1.4934757,4414.4,4414.3,3.8306]
[1756796216672,1.4934757,4414.4,4414.3,4.1206]
[1756796218379,1.4934757,4414.4,4414.3,3.8886]
[1756796218671,1.4934757,4414.4,4414.3,4.1206]
[1756796219062,1.67757229,4414.4,4414.3,4.1206]
[1756796223976,1.27397229,4414.4,4414.3,4.1206]
[1756796224275,0.96717229,4414.4,4414.3,4.1206]
[1756796224874,1.27397229,4414.4,4414.3,4.1206]
[1756796225978,1.47857229,4414.4,4414.3,4.1206]
[1756796228278,1.48828076,4414.4,4414.3,4.1206]
[1756796228682,0.19380506,4414.4,4414.3,4.1206]
[1756796229472,0.19380506,4414.4,4414.3,4.34712999]
[1756796229677,0.19380506,4414.4,4414.3,5.72944446]
[1756796231377,0.19381858,4414.4,4414.3,5.72944446]
[1756796231587,0.19381858,4414.4,4414.3,5.49744446]
[1756796231883,0.19381858,4414.4,4414.3,4.9036757]
[1756796232271,0.19381858,4414.4,4414.3,3.8886]
[1756796232476,0.19381858,4414.4,4414.3,4.1206]
[1756796234882,0.19381858,4414.4,4414.3,3.8886]
[1756796235085,0.19381858,4414.4,4414.3,4.1206]
[1756796237485,0.19381858,4414.4,4414.3,3.8886]
[1756796237685,0.19381858,4414.4,4414.3,4.1206]
[1756796239086,0.19361299,4414.4,4414.3,4.1206]
[1756796242787,0.19357745,4414.4,4414.3,4.1297]
[1756796248400,0.19357745,4414.4,4414.3,3.8977]
[1756796248603,0.19357745,4414.4,4414.3,4.1297]
[1756796249395,0.19357745,4414.4,4414.3,44.9297]
[1756796249594,0.19357745,4414.4,4414.3,45.90507672]
[1756796249901,0.4751,4415.1,4415.0,0.7043]
[1756796250095,0.69009935,4415.1,4415.0,4.1441]
[1756796251702,0.21499935,4415.1,4415.0,4.1441]
[1756796253099,0.4751,4416.5,4416.4,0.4052]
[1756796253401,0.4751,4416.5,4416.4,4.1441]
[1756796253899,0.2818,4416.5,4416.4,4.1441]
[1756796254097,0.4751,4416.5,4416.4,3.9121]
[1756796254299,0.4751,4416.5,4416.4,4.1431]
[1756796254603,0.6681,4416.5,4416.4,3.9121]
[1756796254901,0.6681,4416.5,4416.4,4.1431]
[1756796255699,0.6681,4416.5,4416.4,3.9121]
[1756796255903,1.64347672,4416.5,4416.4,3.613]
[1756796256297,1.64347672,4416.5,4416.4,3.2078]
[1756796256298,5.76227672,4416.5,4416.4,3.2078]
[1756796258202,0.6681,4415.7,4415.6,0.231]
[1756796258400,0.3863,4415.2,4415.1,3.4059]
[1756796258594,0.6681,4415.2,4415.1,44.644]
[1756796258794,0.6681,4415.2,4415.1,44.9431]
[1756796261599,1.64347672,4415.2,4415.1,3.2078]
[1756796261799,1.64347672,4415.2,4415.1,3.4388]
[1756796261999,1.64347672,4415.2,4415.1,3.2078]